bitfinex/quotes_ETHUSD_20250605
["timestamp","ask_amount","ask_price","bid_price","bid_amount"]
[1749094893584,3.64498708,2625.4,2624.7,2.352979]
[1749094893969,3.64498708,2625.4,2624.7,10.0]
[1749094894437,3.64498708,2625.4,2624.7,3.006998]
[1749094894836,3.64498708,2625.4,2624.6,10.0]
[1749094895031,3.64498708,2625.4,2624.7,10.0]
[1749094895234,3.64498708,2625.4,2624.8,10.061]
[1749094895974,4.77818708,2625.4,2624.8,10.061]
[1749094897065,4.77818708,2625.4,2624.8,8.212]
[1749094897277,4.77818708,2625.4,2624.9,8.388]
[1749094897477,3.64498708,2625.4,2624.9,8.388]
[1749094901090,3.64498708,2625.4,2625.0,8.212]
[1749094903891,1.0925,2625.6,2625.0,8.212]
[1749094904091,4.73748708,2625.6,2625.0,8.212]
[1749094905278,1.1046,2625.9,2625.0,8.212]
[1749094905614,3.64498708,2625.6,2625.0,8.212]
[1749094906896,0.02,2625.9,2625.1,8.528384]
[1749094907094,0.02,2625.9,2625.2,10.0]
[1749094907485,3.64498708,2625.8,2625.2,10.0]
[1749094908702,3.64498708,2625.8,2625.1,1.20578674]
[1749094908904,0.02,2625.9,2625.2,10.27445074]
[1749094909072,0.02,2625.9,2625.2,1.20578674]
[1749094909864,0.02,2625.9,2625.2,11.20578674]
[1749094910068,0.02,2625.9,2625.2,1.20578674]
[1749094910293,3.64498708,2625.8,2625.2,1.20578674]
[1749094910502,3.64498708,2625.8,2625.2,10.0]
[1749094910808,0.02,2625.9,2625.2,10.0]
[1749094911011,3.66498708,2625.9,2625.2,10.0]
[1749094911209,3.66498708,2625.9,2625.1,1.20578674]
[1749094911378,3.66498708,2625.9,2625.2,10.0]
[1749094911722,3.66498708,2625.9,2625.2,1.20578674]
[1749094911887,3.66498708,2625.9,2625.2,15.765244]
[1749094912071,3.66498708,2625.9,2625.2,4.105244]
[1749094912776,3.66498708,2625.9,2625.2,2.390244]
[1749094913177,4.75288708,2625.9,2625.3,8.278]
[1749094913406,5.22817579,2625.9,2625.3,8.278]
[1749094913676,5.22817579,2625.9,2625.4,6.49]
[1749094915710,3.64498708,2625.7,2625.2,0.0861]
[1749094916013,3.64498708,2625.7,2625.3,8.269]
[1749094916777,1.58318871,2625.9,2625.1,1.20578674]
[1749094916977,3.64498708,2625.8,2625.2,8.265]
[1749094920519,1.1579,2625.7,2625.2,1.786]
[1749094920718,3.64498708,2625.4,2625.3,6.467]
[1749094920921,3.64498708,2625.4,2625.2,1.786]
[1749094921124,3.64498708,2625.4,2625.3,6.467]
[1749094921924,3.64498708,2625.4,2625.2,1.786]
[1749094922097,3.64498708,2625.4,2625.3,6.464]
[1749094923632,4.81608708,2625.4,2625.2,1.786]
[1749094923793,0.36449871,2625.3,2625.2,1.786]
[1749094924127,4.81608708,2625.4,2625.2,8.245]
[1749094924712,4.81608708,2625.4,2625.0,8.212]
[1749094924903,1.1711,2625.4,2625.3,1.786]
[1749094925991,4.81608708,2625.4,2625.3,1.786]
[1749094927400,0.55,2625.3,2625.0,8.212]
[1749094927595,1.03160871,2625.3,2625.1,8.234]
[1749094927916,3.64498708,2625.2,2625.1,8.234]
[1749094929547,3.64498708,2625.2,2625.1,8.229]
[1749094934667,3.64498708,2625.2,2625.1,8.215]
[1749094937464,3.64498708,2625.2,2625.0,8.212]
[1749094937757,3.64498708,2625.2,2625.1,8.207]
[1749094940333,3.64498708,2625.2,2625.1,9.944]
[1749094940558,4.18159579,2625.2,2625.1,9.944]
[1749094940765,4.18159579,2625.2,2625.1,8.213]
[1749094941368,4.73159579,2625.2,2625.1,9.944]
[1749094941662,4.73159579,2625.2,2625.1,16.357]
[1749094943130,5.85959579,2625.2,2625.1,16.357]
[1749094943965,5.85959579,2625.2,2625.1,16.35]
[1749094944834,5.85959579,2625.2,2625.1,8.213]
[1749094945056,5.85959579,2625.2,2625.1,16.347]
[1749094946385,5.85959579,2625.2,2625.1,16.344]
[1749094952982,5.85959579,2625.2,2625.1,16.328]
[1749094955551,5.85959579,2625.2,2625.1,8.213]
[1749094955765,5.85959579,2625.2,2625.1,16.321]
[1749094958392,5.85959579,2625.2,2625.1,9.944]
[1749094958588,5.85959579,2625.2,2625.1,16.315]
[1749094958775,5.85959579,2625.2,2625.1,9.944]
[1749094959087,5.85959579,2625.2,2625.1,16.313]
[1749094961492,5.85959579,2625.2,2625.1,9.944]
[1749094961700,5.85959579,2625.2,2625.1,16.308]
[1749094964885,2.21460871,2625.2,2625.1,16.307]
[1749094965198,5.32298708,2625.2,2625.1,16.307]
[1749094966601,0.55,2625.2,2625.1,16.307]
[1749094966901,4.19498708,2625.2,2625.1,16.307]
[1749094967292,0.02,2624.9,2624.2,30.0]
[1749094967590,0.02,2624.9,2624.3,9.945]
[1749094967993,0.02,2624.9,2624.4,28.33416661]
[1749094968176,0.02,2624.9,2624.5,30.0]
[1749094968380,0.02,2624.9,2624.6,6.362]
[1749094971002,0.02,2624.9,2624.4,10.0]
[1749094971003,0.02,2624.9,2624.5,10.0]
[1749094971203,0.02,2624.9,2624.7,8.062]
[1749094972682,0.02,2624.9,2624.8,6.362]
[1749094973689,0.02,2624.9,2624.8,6.3762]
[1749094975010,0.02,2624.9,2624.8,8.062]
[1749094976727,0.02,2624.9,2624.4,1.22141994]
[1749094976887,0.02,2624.9,2624.6,2.290131]
[1749094977088,0.02,2624.9,2624.7,10.0]
[1749094977605,0.02,2624.9,2624.6,2.290131]
[1749094977925,0.02,2624.9,2624.8,16.0]
[1749094978128,0.02,2624.9,2624.6,16.0]
[1749094979904,0.02,2624.9,2624.8,16.0]
[1749094984822,0.02,2624.9,2624.8,24.061]
[1749094988598,0.02,2624.9,2624.8,16.0]
[1749094988798,0.02,2624.9,2624.8,24.06]
[1749094989019,0.02,2624.9,2624.8,16.0]
[1749094989224,0.02,2624.9,2624.8,24.06]
[1749094989536,0.02,2624.9,2624.8,16.0]
[1749094989739,0.02,2624.9,2624.8,24.06]
[1749094990918,0.02,2624.9,2624.8,16.0]
[1749094991114,0.02,2624.9,2624.8,24.06]
[1749094992436,0.02,2624.9,2624.8,8.06]
[1749094996252,0.38649871,2624.9,2624.7,8.213]
[1749094996465,4.78538708,2624.8,2624.7,8.213]
[1749094996619,4.78538708,2624.8,2624.7,16.273]
[1749094998828,4.78538708,2624.8,2623.8,30.0]
[1749094999029,4.78538708,2624.8,2623.9,16.0]
[1749094999253,4.78538708,2624.8,2623.8,30.0]
[1749094999927,4.78538708,2624.8,2623.9,6.36]
[1749095000132,4.78538708,2624.8,2624.1,10.0]
[1749095000362,4.78538708,2624.8,2624.1,2.741574]
[1749095000657,4.78538708,2624.8,2624.0,10.0]
[1749095001056,4.78538708,2624.8,2624.1,10.0]
[1749095001279,3.64498708,2624.4,2624.2,6.36]
[1749095001952,3.64498708,2624.4,2623.4,12.671325]
[1749095002253,4.83698708,2624.4,2623.6,4.575209]
[1749095002461,4.83698708,2624.4,2623.7,10.0]
[1749095002750,4.83698708,2624.4,2623.7,6.648281]
[1749095003467,4.83698708,2624.4,2623.9,10.0]
[1749095003671,4.83698708,2624.4,2623.8,6.36]
[1749095005375,4.83698708,2624.4,2623.9,9.913]
[1749095007275,4.83698708,2624.4,2624.0,6.36]
[1749095008862,4.83698708,2624.4,2623.9,8.214]
[1749095009378,4.83698708,2624.4,2624.0,8.059]
[1749095009760,4.83698708,2624.4,2623.9,8.214]
[1749095009952,4.83698708,2624.4,2624.0,8.059]
[1749095016790,4.83698708,2624.4,2623.9,8.214]
[1749095017085,4.83698708,2624.4,2624.0,8.058]
[1749095021298,2.65274482,2624.2,2624.0,8.058]
[1749095024699,2.65274482,2624.2,2624.1,8.215]
[1749095028026,2.65274482,2624.2,2624.1,9.914]
[1749095028307,2.65274482,2624.2,2624.1,16.271]
[1749095030479,1.192,2624.4,2624.1,1.699]
[1749095030676,2.65274482,2624.3,2624.1,1.699]
[1749095031705,2.65274482,2624.3,2624.2,6.357]
[1749095032214,2.65274482,2624.3,2624.1,1.699]
[1749095032412,3.0372193,2624.3,2624.2,6.357]
[1749095033273,2.65274482,2624.3,2624.2,6.357]
[1749095034115,1.192,2624.4,2624.2,6.357]
[1749095034328,3.81974482,2624.8,2624.2,6.397]
[1749095035400,3.81974482,2624.8,2624.3,8.215]
[1749095037285,4.48166937,2624.8,2624.3,8.215]
[1749095043434,4.48166937,2624.8,2624.4,8.05]
[1749095043724,4.48166937,2624.8,2624.3,8.215]
[1749095043943,4.48166937,2624.8,2624.4,8.05]
[1749095044120,3.31466937,2624.6,2624.4,8.05]
[1749095044831,3.31466937,2624.6,2624.5,8.05]
[1749095045536,3.86466937,2624.6,2624.5,8.05]
[1749095045846,1.8041,2624.4,2624.3,8.215]
[1749095045999,5.11876937,2624.4,2624.3,16.264]
[1749095049238,5.11876937,2624.4,2624.3,1.696]
[1749095050445,5.11876937,2624.4,2624.3,8.049]
[1749095052848,5.11876937,2624.4,2624.3,1.696]
[1749095053012,5.680963,2624.4,2624.3,8.048]
[1749095054705,5.680963,2624.4,2623.2,0.38120989]
[1749095055044,5.11876937,2624.4,2623.4,15.965825]
[1749095055354,5.11876937,2624.4,2623.6,5.842554]
[1749095055530,5.11876937,2624.4,2623.7,16.352]
[1749095055739,5.11876937,2624.4,2623.7,6.352]
[1749095057262,2.65256671,2624.3,2623.7,6.352]
[1749095059527,2.65256671,2624.3,2623.8,1.696]
[1749095060558,2.65256671,2624.3,2623.5,8.215]
[1749095060764,2.65256671,2624.3,2623.6,8.047]
[1749095063669,2.65256671,2624.3,2623.7,0.1249]
[1749095064740,2.65256671,2623.9,2623.8,1.693]
[1749095064947,2.65256671,2623.9,2623.8,8.043]
[1749095065150,4.37826671,2623.9,2623.8,1.693]
[1749095065351,5.08135005,2623.9,2623.8,8.043]
[1749095065736,5.08135005,2623.9,2623.8,1.693]
[1749095065933,0.55,2623.8,2623.5,8.215]
[1749095066242,4.37826671,2623.6,2623.5,8.215]
[1749095066461,4.37826671,2623.6,2623.5,16.258]
[1749095067230,5.48152557,2623.6,2623.5,9.908]
[1749095067463,5.48152557,2623.6,2623.5,16.258]
[1749095068331,5.0436989,2623.6,2623.5,16.258]
[1749095068527,4.4936989,2623.6,2623.5,16.258]
[1749095070461,5.0436989,2623.6,2623.5,16.258]
[1749095073556,5.0436989,2623.6,2623.5,16.257]
[1749095075670,3.8679989,2623.6,2623.5,16.257]
[1749095087521,3.8679989,2623.6,2623.5,9.908]
[1749095087688,4.37820879,2623.6,2623.5,16.255]
[1749095089016,1.2341,2623.8,2623.5,16.255]
[1749095089215,0.55,2623.9,2623.5,16.255]
[1749095089512,3.3179989,2623.8,2623.5,16.255]
[1749095093294,3.3179989,2623.8,2623.5,8.215]
[1749095093509,3.3179989,2623.8,2623.6,8.034]
[1749095095317,0.55,2623.7,2623.6,1.689]
[1749095095525,0.55,2623.7,2623.6,8.034]
[1749095098525,0.55,2623.7,2623.5,8.215]
[1749095098730,0.55,2623.7,2623.6,8.033]
[1749095099799,0.55,2623.7,2623.6,8.032]
[1749095103811,0.55,2623.7,2623.6,8.031]
[1749095106620,0.75,2623.7,2623.6,1.689]
[1749095106820,1.13679989,2623.7,2623.6,1.689]
[1749095107841,1.13679989,2623.7,2623.6,8.031]
[1749095110803,1.13679989,2623.7,2623.6,8.03]
[1749095112309,1.13679989,2623.7,2623.6,8.029]
[1749095112755,1.13679989,2623.7,2623.6,1.689]
[1749095112962,0.2,2623.3,2622.0,30.0]
[1749095113253,3.5179989,2622.9,2622.2,10.126696]
[1749095113708,3.5179989,2622.9,2622.4,12.993494]
[1749095113908,3.5179989,2622.9,2622.5,8.029]
[1749095114108,3.5179989,2622.9,2622.6,8.029]
[1749095114313,3.5179989,2622.9,2622.7,1.689]
[1749095115551,3.5179989,2622.9,2622.8,8.218]
[1749095116321,0.2,2623.2,2622.8,1.689]
[1749095117539,3.5179989,2623.3,2622.9,6.34]
[1749095117741,0.2,2623.4,2623.1,10.0]
[1749095118619,0.2,2623.4,2623.0,12.655408]
[1749095118819,0.2,2623.4,2623.1,10.0]
[1749095119031,0.2,2623.4,2623.0,15.394336]
[1749095119232,0.2,2623.4,2623.1,10.0]
[1749095119428,0.2,2623.4,2623.0,12.675816]
[1749095119619,0.2,2623.4,2623.1,10.0]
[1749095120243,0.2,2623.4,2623.0,8.24282]
[1749095122017,0.2,2623.6,2623.0,8.24282]
[1749095122420,1.2838,2623.8,2623.0,8.24282]
[1749095122664,0.22,2623.9,2623.2,35.842722]
[1749095122830,0.02,2623.9,2623.3,0.38118864]
[1749095123032,0.02,2623.9,2623.5,29.01858859]
[1749095123232,0.02,2623.9,2623.7,4.374977]
[1749095123462,0.02,2623.9,2623.8,8.778737]
[1749095125281,0.02,2623.9,2623.8,16.995737]
[1749095127987,0.02,2623.9,2623.8,17.37686361]
[1749095128286,0.02,2623.9,2623.8,16.995737]
[1749095130793,0.02,2623.9,2623.8,20.3137359]
[1749095131087,0.00154242,2623.9,2623.8,17.37686361]
[1749095131691,0.00154242,2623.9,2623.8,16.995737]
[1749095131857,0.00154242,2623.9,2623.8,10.657737]
[1749095132050,0.00154242,2623.9,2623.8,18.675737]
[1749095133791,0.00154242,2623.9,2623.8,19.05686361]
[1749095134675,0.00154242,2623.9,2623.8,12.72286361]
[1749095134917,0.00154242,2623.9,2623.8,19.05586361]
[1749095143800,0.00154242,2623.9,2623.8,11.03886361]
[1749095144005,0.00154242,2623.9,2623.8,19.05286361]
[1749095144804,0.00012598,2623.9,2623.8,19.05286361]
[1749095155029,0.2,2624.6,2623.9,18.87181]
[1749095155196,0.2,2624.6,2624.0,1.679]
[1749095155401,0.2,2624.6,2624.1,9.833748]
[1749095156804,0.2,2624.6,2624.2,10.0]
[1749095157006,0.2,2624.6,2624.4,10.0]
[1749095157203,0.2,2624.6,2624.1,10.0]
[1749095157405,0.2,2624.6,2624.1,7.358748]
[1749095157725,0.2,2624.6,2624.3,10.0]
[1749095157945,0.2,2624.6,2624.2,5.767891]
[1749095159340,0.2,2624.6,2624.3,8.214]
[1749095162430,1.2462,2624.8,2624.5,12.461588]
[1749095162635,0.02,2624.9,2624.7,25.007743]
[1749095162821,0.02,2624.9,2624.8,25.155373]
[1749095163148,0.02,2624.9,2624.8,22.201378]
[1749095163452,0.02,2624.9,2624.8,20.841856]
[1749095163747,0.02,2624.9,2624.8,18.466856]
[1749095164972,0.00167482,2624.9,2624.8,18.466856]
[1749095167476,0.00167482,2624.9,2624.8,16.362722]
[1749095169574,0.00167482,2624.9,2624.8,16.7437034]
[1749095169786,0.00167482,2624.9,2624.8,16.362722]
[1749095171136,0.00167482,2624.9,2624.8,16.7437034]
[1749095172078,0.00167482,2624.9,2624.8,16.362722]
[1749095172566,0.00167482,2624.9,2624.8,16.7437034]
[1749095175070,0.0001594,2624.9,2624.8,16.7437034]
[1749095177868,0.0001594,2624.9,2624.8,10.4197034]
[1749095178167,0.0001594,2624.9,2624.8,18.4167034]
[1749095180576,0.0001594,2624.9,2624.8,26.6277034]
[1749095182682,0.0001594,2624.9,2624.8,18.249722]
[1749095182859,0.0001594,2624.9,2624.8,17.629906]
[1749095183063,0.0001594,2624.9,2624.8,23.941906]
[1749095183573,0.0001594,2624.9,2624.8,14.788518]
[1749095183880,0.0001594,2624.9,2624.8,16.201]
[1749095184035,0.0001594,2624.9,2624.8,8.211]
[1749095184237,0.0001594,2624.9,2624.8,9.885]
[1749095184436,0.0001594,2624.9,2624.8,16.201]
[1749095185073,0.0001594,2624.9,2624.8,23.716893]
[1749095185273,0.0001594,2624.9,2624.8,23.356893]
[1749095186477,0.0001594,2624.9,2624.8,20.330383]
[1749095187577,0.0001594,2624.9,2624.8,20.329383]
[1749095188453,0.0001594,2624.9,2624.8,1.674]
[1749095189576,0.0001594,2624.9,2624.8,7.989]
[1749095190278,0.0001594,2624.9,2624.8,1.674]
[1749095190477,0.0001594,2624.9,2624.8,7.989]
[1749095190781,0.0001594,2624.9,2624.3,3.69904016]
[1749095190963,0.0001594,2624.9,2624.4,23.249897]
[1749095191987,1.199,2624.8,2624.5,2.882183]
[1749095192187,1.199,2624.8,2624.6,6.314]
[1749095192352,1.199,2624.8,2624.1,10.0]
[1749095192549,1.199,2624.8,2624.3,6.624164]
[1749095192780,1.199,2624.7,2623.7,0.38114113]
[1749095192979,1.1388,2624.5,2623.9,30.288183]
[1749095193169,1.1388,2624.5,2623.9,20.288183]
[1749095193754,1.1388,2624.5,2623.8,30.0]
[1749095193966,1.1388,2624.5,2624.1,3.410212]
[1749095194160,1.1388,2624.5,2624.2,3.362992]
[1749095194363,0.2,2624.4,2624.3,6.314]
[1749095194886,0.2,2624.4,2624.3,9.653972]
[1749095195256,0.2,2624.4,2624.3,19.538972]
[1749095197091,0.2,2624.4,2624.3,19.319308]
[1749095198153,0.2,2624.4,2624.3,16.198]
[1749095199000,0.2,2624.4,2624.3,19.992308]
[1749095201393,0.2,2624.4,2624.3,21.138308]
[1749095201594,0.2,2624.4,2624.3,1.674]
[1749095201901,0.2,2624.4,2624.3,6.645308]
[1749095202103,0.2,2624.4,2624.3,4.294]
[1749095202706,0.2,2624.4,2624.3,7.987]
[1749095203006,0.2,2624.4,2622.7,0.67620026]
[1749095203007,1.165,2624.3,2623.5,26.133331]
[1749095203302,1.165,2624.3,2623.7,19.943403]
[1749095203705,1.165,2624.3,2623.9,10.060375]
[1749095204590,1.165,2624.3,2624.1,10.0]
[1749095204797,1.165,2624.3,2623.6,10.0]
[1749095204997,1.165,2624.3,2623.8,10.0]
[1749095205176,1.165,2624.3,2623.7,1.674]
[1749095205371,1.165,2624.3,2623.9,10.0]
[1749095205801,1.165,2624.3,2624.0,10.0]
[1749095206194,1.165,2624.3,2624.0,3.122973]
[1749095207106,1.165,2624.3,2624.1,6.312]
[1749095209298,1.165,2624.3,2624.0,10.0]
[1749095209485,1.63329989,2624.3,2624.1,1.674]
[1749095209819,1.65909989,2624.3,2624.2,6.311]
[1749095212585,1.65909989,2624.3,2624.1,1.674]
[1749095212789,1.65909989,2624.3,2624.2,6.311]
[1749095213608,1.1908,2624.3,2624.2,6.311]
[1749095214429,0.2,2624.4,2624.2,6.311]
[1749095214590,1.4092,2624.6,2624.2,6.311]
[1749095214791,0.2,2624.3,2624.2,6.311]
[1749095215624,0.2,2624.5,2624.2,16.311]
[1749095216414,0.2,2624.3,2624.2,6.311]
[1749095217993,0.2,2624.5,2624.2,6.311]
[1749095218514,0.2,2624.5,2624.3,23.069267]
[1749095218827,0.2,2624.5,2624.3,13.069267]
[1749095219128,0.2,2624.5,2624.3,10.84847]
[1749095219714,0.2,2624.5,2624.3,4.217802]
[1749095219918,0.2,2624.5,2624.3,12.265432]
[1749095220129,0.2,2624.5,2624.3,10.0]
[1749095220309,0.2,2624.5,2624.3,16.187432]
[1749095220509,0.2,2624.5,2624.4,10.0]
[1749095220709,0.2,2624.5,2624.3,16.194432]
[1749095220922,0.2,2624.5,2624.4,10.0]
[1749095221122,0.01730442,2624.5,2624.3,16.194432]
[1749095221428,0.01730442,2624.5,2624.4,6.308]
[1749095222328,0.01730442,2624.5,2624.4,13.9045]
[1749095224912,0.01730442,2624.5,2624.4,12.438003]
[1749095225205,0.01730442,2624.5,2624.4,9.933003]
[1749095225412,0.01730442,2624.5,2624.4,9.536947]
[1749095225814,0.01730442,2624.5,2624.4,17.749947]
[1749095229838,0.01730442,2624.5,2624.4,33.011784]
[1749095231542,0.00161807,2624.5,2624.4,30.521]
[1749095231842,0.00161807,2624.5,2624.4,30.518]
[1749095233139,0.00161807,2624.5,2624.4,33.204784]
[1749095233352,0.00161807,2624.5,2624.4,30.518]
[1749095233720,0.00161807,2624.5,2624.4,34.264784]
[1749095234333,0.00161807,2624.5,2624.4,33.245784]
[1749095235050,0.00161807,2624.5,2624.4,30.518]
[1749095237364,0.00161807,2624.5,2624.4,32.823743]
[1749095237671,0.00161807,2624.5,2624.4,30.518]
[1749095238983,0.00161807,2624.5,2624.4,24.213]
[1749095239152,1.22361807,2624.5,2624.4,25.882]
[1749095239348,1.67777977,2624.5,2624.4,25.882]
[1749095239683,1.67777977,2624.5,2624.4,32.185]
[1749095241344,1.67777977,2624.5,2624.4,25.882]
[1749095241544,1.67777977,2624.5,2624.4,32.185]
[1749095242245,2.22777977,2624.5,2624.4,24.213]
[1749095242437,2.22777977,2624.5,2624.4,32.184]
[1749095244593,2.22777977,2624.5,2624.4,25.882]
[1749095244905,2.22777977,2624.5,2624.4,32.184]
[1749095245699,2.22777977,2624.5,2624.4,25.882]
[1749095245999,5.09161697,2624.5,2624.4,32.184]
[1749095247977,1.22361807,2624.5,2624.4,32.184]
[1749095248860,0.00161807,2624.5,2624.4,32.184]
[1749095249803,0.00161807,2624.6,2624.5,16.0]
[1749095252127,0.00161807,2624.6,2624.4,16.184]
[1749095256520,1.1619,2625.1,2624.5,17.875298]
[1749095256723,0.00161807,2624.9,2624.6,10.0]
[1749095256914,0.00161807,2624.7,2624.5,14.813926]
[1749095257222,1.1619,2625.1,2624.7,10.0]
[1749095257429,1.1619,2625.1,2624.6,7.299166]
[1749095257640,0.00161807,2624.8,2624.6,6.030618]
[1749095258708,1.1619,2625.1,2624.6,6.030618]
[1749095258927,0.00161807,2624.8,2624.6,6.030618]
[1749095260243,0.00161807,2624.6,2624.4,9.882]
[1749095260543,0.00161807,2624.6,2624.5,6.297]
[1749095260710,0.00015497,2624.6,2624.5,6.297]
[1749095260906,0.00015497,2624.6,2624.4,9.882]
[1749095261132,0.00015497,2624.6,2624.5,6.297]
[1749095261358,0.44774036,2624.6,2624.4,9.882]
[1749095261535,4.4463989,2624.5,2624.4,9.882]
[1749095261708,4.9963989,2624.5,2624.4,9.882]
[1749095262032,4.9963989,2624.5,2624.4,16.179]
[1749095263040,1.1284,2624.5,2624.4,16.179]
[1749095263658,1.1284,2624.5,2624.4,16.178]
[1749095263825,1.57305539,2624.5,2624.4,16.178]
[1749095269824,0.00015497,2624.6,2624.4,16.178]
[1749095270226,3.31815387,2624.6,2624.5,7.959]
[1749095270437,3.31815387,2624.6,2624.4,8.213]
[1749095270730,3.86815387,2624.6,2624.5,7.96]
[1749095270948,5.02835387,2624.6,2624.5,7.96]
[1749095271116,5.53118926,2624.6,2624.5,7.96]
[1749095271318,5.53118926,2624.6,2624.5,1.665]
[1749095271513,5.53118926,2624.6,2624.4,8.213]
[1749095271514,1.7102,2624.5,2624.4,8.213]
[1749095271819,1.7102,2624.5,2624.4,16.173]
[1749095273956,1.7102,2624.5,2624.4,8.213]
[1749095274165,2.26331893,2624.5,2624.4,16.172]
[1749095274455,2.26331893,2624.5,2624.4,9.878]
[1749095274665,2.26331893,2624.5,2624.4,16.172]
[1749095276367,2.26331893,2624.5,2624.4,16.167]
[1749095276552,1.7102,2624.5,2624.4,16.167]
[1749095276749,1.1602,2624.5,2624.4,16.167]
[1749095277065,0.00015497,2624.6,2624.4,16.167]
[1749095277961,1.127,2625.0,2624.4,16.167]
[1749095280536,4.4449989,2625.0,2624.4,16.167]
[1749095280736,0.44449989,2624.9,2624.4,16.167]
[1749095281167,0.44449989,2624.9,2624.4,9.873]
[1749095281372,0.44449989,2624.9,2624.5,7.953]
[1749095284277,4.4449989,2625.0,2624.5,7.953]
[1749095286268,4.4449989,2625.0,2624.6,6.291]
[1749095289580,4.4449989,2625.0,2623.3,1.14165]
[1749095289581,4.4449989,2625.0,2523.4,14.37327824]
[1749095289756,0.55,2624.9,2623.9,26.133331]
[1749095289959,0.55,2624.9,2624.1,19.98605]
[1749095290281,0.55,2624.9,2624.1,9.98605]
[1749095290675,0.55,2624.9,2624.1,6.999078]
[1749095290884,0.55,2624.9,2624.3,13.93]
[1749095291072,0.55,2624.9,2624.4,6.29]
[1749095291380,1.04949989,2624.9,2624.4,6.29]
[1749095291947,1.06949989,2624.9,2624.4,6.29]
[1749095292144,1.06949989,2624.9,2624.0,1.66]
[1749095292145,0.55,2624.7,2624.0,1.66]
[1749095292453,0.55,2624.5,2624.1,6.29]
[1749095293484,0.55,2624.7,2624.0,1.66]
[1749095293671,0.55,2624.7,2624.2,6.289]
[1749095294472,0.55,2624.7,2624.3,1.66]
[1749095294668,1.10812988,2624.7,2624.3,1.66]
[1749095295274,1.10812988,2624.7,2624.4,8.214]
[1749095296284,1.10812988,2624.7,2624.5,6.289]
[1749095296783,3.8679989,2624.6,2624.5,6.289]
[1749095297348,0.55,2624.5,2624.4,8.214]
[1749095297687,2.19641288,2624.5,2624.4,16.163]
[1749095298888,0.55,2624.7,2624.4,16.163]
[1749095300296,0.55,2624.5,2624.4,8.214]
[1749095300490,1.736,2624.5,2624.4,16.162]
[1749095302092,1.736,2624.5,2624.4,9.874]
[1749095302260,1.736,2624.5,2624.4,16.161]
[1749095302460,2.24139989,2624.5,2624.4,16.161]
[1749095305593,2.24139989,2624.5,2624.4,8.214]
[1749095305896,2.24139989,2624.5,2624.4,16.156]
[1749095311562,1.05539989,2624.5,2624.4,16.156]
[1749095311763,0.55,2624.7,2624.4,16.156]
[1749095313771,0.02,2624.9,2624.4,16.156]
[1749095314197,0.57,2624.9,2624.4,16.156]
[1749095314394,3.3179989,2624.5,2624.4,8.214]
[1749095314584,4.5391989,2624.5,2624.4,8.214]
[1749095314769,4.5391989,2624.5,2624.4,16.154]
[1749095314997,5.04811879,2624.5,2624.4,16.154]
[1749095315398,5.04811879,2624.5,2624.4,16.153]
[1749095315778,5.04811879,2624.5,2624.4,9.869]
[1749095315976,5.04811879,2624.5,2624.4,16.153]
[1749095319677,3.82691879,2624.5,2624.4,16.153]
[1749095320033,0.50891989,2624.5,2624.4,16.153]
[1749095320726,0.50891989,2624.5,2624.4,8.214]
[1749095321084,0.50891989,2624.5,2624.4,16.152]
[1749095321285,5.56011879,2624.5,2624.4,9.869]
[1749095321481,5.56011879,2624.5,2624.4,16.152]
[1749095322036,5.56011879,2624.5,2624.4,1.655]
[1749095322037,2.24211989,2624.5,2624.4,1.655]
[1749095322230,5.0511989,2624.5,2624.4,1.655]
[1749095323418,5.0511989,2624.5,2624.4,7.938]
[1749095324522,0.02,2623.9,2623.4,25.543591]
[1749095324723,0.00178831,2623.9,2623.3,26.133331]
[1749095325518,0.00178831,2623.9,2623.5,15.149764]
[1749095325726,0.00178831,2623.9,2623.7,13.018323]
[1749095325889,0.00178831,2623.9,2623.8,10.0]
[1749095326219,0.00178831,2623.9,2623.8,2.552116]
[1749095327823,0.00178831,2623.9,2623.6,6.282]
[1749095328023,0.00178831,2623.9,2623.7,5.156848]
[1749095328194,0.00178831,2623.9,2623.8,2.778932]
[1749095328403,0.00178831,2623.9,2623.6,6.282]
[1749095328721,0.00178831,2623.9,2623.7,6.282]
[1749095330223,0.00178831,2623.9,2623.8,7.937]
[1749095334753,0.00015877,2623.9,2623.8,16.152]
[1749095341896,0.00015877,2623.9,2623.8,8.215]
[1749095342091,0.00015877,2623.9,2623.8,9.866]
[1749095342397,0.00015877,2623.9,2623.8,16.145]
[1749095344701,3.8679989,2624.4,2623.8,16.145]
[1749095344896,0.50511989,2624.3,2623.8,16.145]
[1749095345138,3.8679989,2624.2,2623.8,9.866]
[1749095345274,3.8679989,2624.0,2623.9,1.651]
[1749095345609,3.8679989,2624.0,2623.9,7.929]
[1749095346012,1.7351,2623.9,2623.8,8.215]
[1749095346206,2.12189989,2623.9,2623.8,16.144]
[1749095348814,2.12189989,2623.9,2623.8,9.866]
[1749095349163,2.12189989,2623.9,2623.8,16.143]
[1749095349290,2.17319989,2623.9,2623.8,1.651]
[1749095350489,2.17319989,2623.9,2623.8,7.928]